[Event "Championnat d'Europe Rapide"]
[Date "2024.12.07"]
[White "Savanovic, Aleksandar"]
[Black "Kuzubov, Yuriy"]
[WhiteElo "2354"]
[BlackElo "2595"]
[Round "6.14"]
[Result "1/2-1/2"]
[TimeControl "900+10"]

1. e4 {[%emt 00:00:01] [%clk 00:15:18]} e6 {[%emt 00:00:11] [%clk 00:15:10]} 2.
d4 {[%emt 00:00:05] [%clk 00:15:23]} d5 {[%emt 00:00:02] [%clk 00:15:18]} 3. e5
{[%emt 00:00:03] [%clk 00:15:31]} c5 {[%emt 00:00:02] [%clk 00:15:26]} 4. c3
{[%emt 00:00:01] [%clk 00:15:39]} Nc6 {[%emt 00:00:02] [%clk 00:15:34]} 5. Nf3
{[%emt 00:00:02] [%clk 00:15:47]} Qb6 {[%emt 00:00:25] [%clk 00:15:19]} 6. Be2
{[%emt 00:00:02] [%clk 00:15:54]} Bd7 {[%emt 00:00:04] [%clk 00:15:26]} 7. O-O
{[%emt 00:00:03] [%clk 00:16:00]} cxd4 {[%emt 00:00:35] [%clk 00:15:02]} 8. cxd4
{[%emt 00:00:03] [%clk 00:16:07]} Nge7 {[%emt 00:00:05] [%clk 00:15:07]} 9. Na3
{[%emt 00:00:17] [%clk 00:16:00]} Nf5 {[%emt 00:00:10] [%clk 00:15:06]} 10. Nc2
{[%emt 00:00:02] [%clk 00:16:08]} Rc8 {[%emt 00:00:21] [%clk 00:14:55]} 11. Kh1
{[%emt 00:00:30] [%clk 00:15:48]} Nb4 {[%emt 00:00:45] [%clk 00:14:20]} 12. Nxb4
{[%emt 00:00:20] [%clk 00:15:39]} Qxb4 {[%emt 00:00:02] [%clk 00:14:28]} 13. Bd2
{[%emt 00:03:42] [%clk 00:12:07]} Qb6 {[%emt 00:00:20] [%clk 00:14:19]} 14. Bc3
{[%emt 00:00:09] [%clk 00:12:07]} Bb5 {[%emt 00:00:26] [%clk 00:14:03]} 15.
Bxb5+ {[%emt 00:01:11] [%clk 00:11:06]} Qxb5 {[%emt 00:00:01] [%clk 00:14:12]}
16. Qd2 {[%emt 00:00:08] [%clk 00:11:08]} h5 {[%emt 00:00:55] [%clk 00:13:27]}
17. g3 {[%emt 00:00:02] [%clk 00:11:17]} Be7 {[%emt 00:00:05] [%clk 00:13:31]}
18. h3 {[%emt 00:00:04] [%clk 00:11:22]} Kd7 {[%emt 00:01:41] [%clk 00:12:00]}
19. Kg2 {[%emt 00:01:11] [%clk 00:10:22]} Kc7 {[%emt 00:00:23] [%clk 00:11:47]}
20. Rh1 {[%emt 00:00:58] [%clk 00:09:33]} Kb8 {[%emt 00:00:04] [%clk 00:11:54]}
21. g4 {[%emt 00:00:03] [%clk 00:09:39]} Nh6 {[%emt 00:00:19] [%clk 00:11:45]}
22. Kg3 {[%emt 00:00:05] [%clk 00:09:45]} f5 {[%emt 00:00:49] [%clk 00:11:06]}
23. g5 {[%emt 00:01:14] [%clk 00:08:41]} f4+ {[%emt 00:03:14] [%clk 00:08:03]}
24. Kg2 {[%emt 00:00:09] [%clk 00:08:41]} Nf5 {[%emt 00:00:08] [%clk 00:08:05]}
25. Rac1 {[%emt 00:00:32] [%clk 00:08:19]} Rhf8 {[%emt 00:01:18] [%clk
00:06:57]} 26. Rc2 {[%emt 00:00:07] [%clk 00:08:22]} Bxg5 {[%emt 00:04:19] [%clk
00:02:48]} 27. Nxg5 {[%emt 00:02:49] [%clk 00:05:43]} Nh4+ {[%emt 00:00:02]
[%clk 00:02:57]} 28. Kh2 {[%emt 00:00:02] [%clk 00:05:50]} Rf5 {[%emt 00:00:02]
[%clk 00:03:04]} 29. Bb4 {[%emt 00:00:02] [%clk 00:05:59]} Rxg5 {[%emt 00:01:53]
[%clk 00:01:21]} 30. Bd6+ {[%emt 00:04:37] [%clk 00:01:31]} Rc7 {[%emt 00:00:02]
[%clk 00:01:30]} 31. Rhc1 {[%clk 00:01:40]} Nf3+ {[%emt 00:00:25] [%clk
00:01:15]} 32. Kh1 {[%emt 00:00:01] [%clk 00:01:49]} Nxd2 {[%emt 00:00:44] [%clk
00:00:41]} 33. Rxc7 {[%emt 00:00:09]} a6 {[%emt 00:00:11] [%clk 00:00:37]} 34.
Rf7+ {[%emt 00:01:16] [%clk 00:00:47]} Ka7 {[%emt 00:00:27] [%clk 00:00:21]} 35.
Bc5+ {[%emt 00:00:03] [%clk 00:00:53]} Kb8 {[%emt 00:00:10] [%clk 00:00:21]} 36.
Bd6+ {[%emt 00:00:01] [%clk 00:01:02]} Ka8 {[%emt 00:00:12] [%clk 00:00:20]} 37.
Rf8+ {[%emt 00:00:45] [%clk 00:00:27]} Ka7 {[%emt 00:00:01] [%clk 00:00:28]} 38.
Bb8+ {[%emt 00:00:01] [%clk 00:00:36]} Kb6 {[%emt 00:00:08] [%clk 00:00:31]} 39.
Bc7+ {[%emt 00:00:01] [%clk 00:00:44]} Ka7 {[%emt 00:00:03] [%clk 00:00:39]} 40.
Bb8+ {[%emt 00:00:01] [%clk 00:00:53]} Kb6 {[%emt 00:00:07] [%clk 00:00:42]} 41.
Bc7+ {[%emt 00:00:01] [%clk 00:01:01]} Ka7 {[%emt 00:00:01] [%clk 00:00:39]}
1/2-1/2

[Site "Europe Echecs"]

[Event "Championnat d'Europe Rapide"]
[Date "2024.12.07"]
[White "Costachi, Mihnea"]
[Black "Quparadze, Giga"]
[WhiteElo "2464"]
[BlackElo "2537"]
[Round "6.15"]
[Result "0-1"]
[TimeControl "900+10"]

1. Nc3 {[%emt 00:00:02] [%clk 00:15:17]} c5 {[%emt 00:00:02] [%clk 00:15:19]} 2.
Nf3 {[%emt 00:00:03] [%clk 00:15:26]} e6 {[%emt 00:00:14] [%clk 00:15:14]} 3. g3
{[%emt 00:00:06] [%clk 00:15:29]} d5 {[%emt 00:00:05] [%clk 00:15:19]} 4. d3
{[%emt 00:00:03] [%clk 00:15:35]} g6 {[%emt 00:00:03] [%clk 00:15:27]} 5. Bg2
{[%emt 00:00:01] [%clk 00:15:44]} Bg7 {[%emt 00:00:01] [%clk 00:15:35]} 6. O-O
{[%emt 00:00:03] [%clk 00:15:51]} Nc6 {[%emt 00:00:02] [%clk 00:15:44]} 7. e4
{[%emt 00:00:16] [%clk 00:15:45]} Nge7 {[%emt 00:00:01] [%clk 00:15:53]} 8. Bd2
{[%emt 00:01:17] [%clk 00:14:38]} O-O {[%emt 00:00:03] [%clk 00:16:00]} 9. Qc1
{[%emt 00:00:02] [%clk 00:14:46]} d4 {[%emt 00:00:13] [%clk 00:15:57]} 10. Ne2
{[%emt 00:00:09] [%clk 00:14:47]} e5 {[%emt 00:00:02] [%clk 00:16:05]} 11. Bh6
{[%emt 00:00:15] [%clk 00:14:41]} f5 {[%emt 00:00:16] [%clk 00:16:00]} 12. exf5
{[%emt 00:00:27] [%clk 00:14:25]} gxf5 {[%emt 00:00:28] [%clk 00:15:42]} 13.
Bxg7 {[%emt 00:01:04] [%clk 00:13:31]} Kxg7 {[%emt 00:00:02] [%clk 00:15:50]}
14. Nh4 {[%emt 00:00:36] [%clk 00:13:04]} Ng6 {[%emt 00:00:19] [%clk 00:15:41]}
15. Nxg6 {[%emt 00:00:14] [%clk 00:13:00]} hxg6 {[%emt 00:00:02] [%clk
00:15:48]} 16. f4 {[%emt 00:00:02] [%clk 00:13:08]} Bd7 {[%emt 00:00:39] [%clk
00:15:20]} 17. h3 {[%emt 00:01:25] [%clk 00:11:54]} Qe7 {[%emt 00:00:56] [%clk
00:14:33]} 18. fxe5 {[%emt 00:00:09] [%clk 00:11:55]} Nxe5 {[%emt 00:00:02]
[%clk 00:14:41]} 19. Nf4 {[%emt 00:03:38] [%clk 00:08:27]} Bc6 {[%emt 00:00:10]
[%clk 00:14:41]} 20. Qd2 {[%emt 00:00:07] [%clk 00:08:29]} Rae8 {[%emt 00:00:07]
[%clk 00:14:44]} 21. Rae1 {[%emt 00:00:48] [%clk 00:07:52]} g5 {[%emt 00:00:02]
[%clk 00:14:52]} 22. Nd5 {[%emt 00:02:11] [%clk 00:05:51]} Qd8 {[%emt 00:00:59]
[%clk 00:14:03]} 23. c4 {[%emt 00:00:09] [%clk 00:05:53]} Bxd5 {[%emt 00:00:11]
[%clk 00:14:01]} 24. Bxd5 {[%emt 00:00:27] [%clk 00:05:36]} b6 {[%emt 00:00:06]
[%clk 00:14:05]} 25. Re2 {[%emt 00:00:24] [%clk 00:05:22]} Kg6 {[%emt 00:01:06]
[%clk 00:13:08]} 26. Ref2 {[%emt 00:01:08] [%clk 00:04:24]} Nd7 {[%emt 00:00:43]
[%clk 00:12:35]} 27. Rf3 {[%emt 00:01:05] [%clk 00:03:30]} Re5 {[%emt 00:00:23]
[%clk 00:12:21]} 28. R3f2 {[%emt 00:02:07] [%clk 00:01:34]} Re3 {[%emt 00:00:12]
[%clk 00:12:19]} 29. Rf3 {[%emt 00:01:20] [%clk 00:00:24]} Qe7 {[%emt 00:00:34]
[%clk 00:11:54]} 30. R1f2 {[%emt 00:00:02] [%clk 00:00:33]} Qe5 {[%emt 00:00:26]
[%clk 00:11:38]} 31. Kg2 {[%emt 00:00:23] [%clk 00:00:20]} Nf6 {[%emt 00:00:18]
[%clk 00:11:29]} 32. Bc6 {[%emt 00:00:08] [%clk 00:00:22]} Nh5 {[%emt 00:00:14]
[%clk 00:11:26]} 33. Qd1 {[%emt 00:00:18] [%clk 00:00:14]} Nxg3 {[%emt 00:00:11]
[%clk 00:11:25]} 34. b4 {[%emt 00:00:11] [%clk 00:00:14]} f4 {[%emt 00:00:21]
[%clk 00:11:13]} 35. bxc5 {[%emt 00:00:04] [%clk 00:00:20]} Nf5 {[%emt 00:00:39]
[%clk 00:10:44]} 36. Be4 {[%emt 00:00:03] [%clk 00:00:27]} Rxe4 {[%emt 00:00:22]
[%clk 00:10:31]} 37. dxe4 {[%emt 00:00:01] [%clk 00:00:36]} Ne3+ {[%emt
00:00:02] [%clk 00:10:39]} 38. Rxe3 {[%emt 00:00:03] [%clk 00:00:42]} dxe3
{[%emt 00:00:02] [%clk 00:10:47]} 39. Rf3 {[%emt 00:00:21] [%clk 00:00:32]} bxc5
{[%emt 00:00:17] [%clk 00:10:41]} 40. Qd5 {[%emt 00:00:15] [%clk 00:00:26]} Re8
{[%emt 00:00:26] [%clk 00:10:23]} 41. Qc6+ {[%emt 00:00:12] [%clk 00:00:26]} Qe6
{[%emt 00:00:06] [%clk 00:10:27]} 42. Qxc5 {[%emt 00:00:07] [%clk 00:00:29]} e2
{[%emt 00:00:02] [%clk 00:10:35]} 43. Kf2 {[%emt 00:00:27] [%clk 00:00:12]} Qxe4
{[%emt 00:00:11] [%clk 00:10:34]} 44. Qd6+ {[%emt 00:00:07] [%clk 00:00:15]} Re6
{[%emt 00:00:02] [%clk 00:10:41]} 0-1

[Site "Europe Echecs"]

[Event "Championnat d'Europe Rapide"]
[Date "2024.12.07"]
[White "Dardha, Daniel"]
[Black "Aizenberg, Benny"]
[WhiteElo "2639"]
[BlackElo "2425"]
[Round "6.16"]
[Result "1-0"]
[TimeControl "900+10"]

1. Nf3 {[%emt 00:01:16] [%clk 00:14:02]} c5 {[%emt 00:00:04] [%clk 00:15:18]} 2.
e3 {[%emt 00:00:12] [%clk 00:14:01]} g6 {[%emt 00:00:19] [%clk 00:15:08]} 3. d4
{[%emt 00:00:05] [%clk 00:14:06]} Bg7 {[%emt 00:00:02] [%clk 00:15:16]} 4. c4
{[%emt 00:00:03] [%clk 00:14:13]} cxd4 {[%emt 00:00:11] [%clk 00:15:16]} 5. exd4
{[%emt 00:00:01] [%clk 00:14:21]} Nf6 {[%emt 00:00:02] [%clk 00:15:25]} 6. d5
{[%emt 00:00:01] [%clk 00:14:29]} O-O {[%emt 00:00:27] [%clk 00:15:08]} 7. Nc3
{[%emt 00:00:03] [%clk 00:14:36]} d6 {[%emt 00:00:48] [%clk 00:14:30]} 8. Be2
{[%emt 00:00:03] [%clk 00:14:41]} Bg4 {[%emt 00:00:05] [%clk 00:14:38]} 9. Be3
{[%emt 00:00:13] [%clk 00:14:36]} Nbd7 {[%emt 00:00:05] [%clk 00:14:44]} 10. Rc1
{[%emt 00:00:06] [%clk 00:14:40]} Rc8 {[%emt 00:01:48] [%clk 00:13:07]} 11. b3
{[%emt 00:00:02] [%clk 00:14:48]} a6 {[%emt 00:00:03] [%clk 00:13:13]} 12. O-O
{[%emt 00:00:10] [%clk 00:14:48]} Bxf3 {[%emt 00:01:36] [%clk 00:11:47]} 13.
Bxf3 {[%emt 00:00:02] [%clk 00:14:57]} b5 {[%emt 00:00:01] [%clk 00:11:56]} 14.
cxb5 {[%emt 00:00:47] [%clk 00:14:20]} Qa5 {[%emt 00:00:03] [%clk 00:12:03]} 15.
bxa6 {[%emt 00:05:49] [%clk 00:08:41]} Qxa6 {[%emt 00:04:00] [%clk 00:08:13]}
16. a4 {[%emt 00:00:28] [%clk 00:08:23]} Rxc3 {[%emt 00:02:31] [%clk 00:05:52]}
17. Rxc3 {[%emt 00:00:02] [%clk 00:08:30]} Nxd5 {[%emt 00:00:02] [%clk
00:06:01]} 18. Rd3 {[%emt 00:00:50] [%clk 00:07:49]} Nb4 {[%emt 00:00:48] [%clk
00:05:24]} 19. Rd2 {[%emt 00:00:02] [%clk 00:07:57]} Bc3 {[%emt 00:00:23] [%clk
00:05:11]} 20. Bh6 {[%emt 00:02:15] [%clk 00:05:51]} Bxd2 {[%emt 00:00:56] [%clk
00:04:26]} 21. Bxf8 {[%emt 00:01:04] [%clk 00:04:57]} Bg5 {[%emt 00:00:42] [%clk
00:03:53]} 22. Bxe7 {[%emt 00:00:48] [%clk 00:04:19]} Bxe7 {[%emt 00:00:12]
[%clk 00:03:51]} 23. Qe1 {[%emt 00:00:02] [%clk 00:04:28]} Qb6 {[%emt 00:02:12]
[%clk 00:01:49]} 24. Qxe7 {[%emt 00:00:15] [%clk 00:04:23]} Ne5 {[%emt 00:00:46]
[%clk 00:01:13]} 25. Qb7 {[%emt 00:00:25] [%clk 00:04:08]} Qc5 {[%emt 00:00:43]
[%clk 00:00:41]} 26. Qe4 {[%emt 00:01:02] [%clk 00:03:15]} Kg7 {[%emt 00:00:38]
[%clk 00:00:13]} 27. Qe3 {[%emt 00:00:10] [%clk 00:03:14]} Qc7 {[%emt 00:00:12]
[%clk 00:00:12]} 28. Rc1 {[%emt 00:00:17] [%clk 00:03:07]} Qd8 {[%emt 00:00:06]
[%clk 00:00:16]} 29. Be2 {[%emt 00:00:05] [%clk 00:03:12]} Nd5 {[%emt 00:00:03]
[%clk 00:00:24]} 30. Qd4 {[%emt 00:00:03] [%clk 00:03:17]} Qg5 {[%emt 00:00:03]
[%clk 00:00:31]} 31. Re1 {[%emt 00:00:50] [%clk 00:02:37]} Nf4 {[%emt 00:00:09]
[%clk 00:00:32]} 32. g3 {[%emt 00:00:02] [%clk 00:02:46]} Ne6 {[%emt 00:00:28]
[%clk 00:00:14]} 33. Qe3 {[%emt 00:00:13] [%clk 00:02:42]} Qd8 {[%emt 00:00:11]
[%clk 00:00:14]} 34. f4 {[%emt 00:00:19] [%clk 00:02:33]} Nd7 {[%emt 00:00:07]
[%clk 00:00:16]} 35. Bc4 {[%emt 00:00:03] [%clk 00:02:41]} Nef8 {[%emt 00:00:14]
[%clk 00:00:12]} 36. Qe7 {[%emt 00:00:31] [%clk 00:02:20]} Qb6+ {[%clk
00:00:21]} 37. Kf1 {[%emt 00:00:01] [%clk 00:02:29]} Qc6 {[%emt 00:00:20] [%clk
00:00:11]} 38. Qxf7+ {[%emt 00:00:04] [%clk 00:02:35]} Kh6 {[%emt 00:00:01]
[%clk 00:00:20]} 39. Qd5 {[%emt 00:00:03] [%clk 00:02:42]} Qb6 {[%emt 00:00:16]
[%clk 00:00:14]} 40. g4 {[%emt 00:00:13] [%clk 00:02:39]} Nc5 {[%emt 00:00:13]
[%clk 00:00:11]} 41. g5+ {[%emt 00:00:01] [%clk 00:02:47]} Kh5 {[%emt 00:00:09]
[%clk 00:00:13]} 42. Qf3+ {[%emt 00:00:02] [%clk 00:02:55]} 1-0

[Site "Europe Echecs"]

[Event "Championnat d'Europe Rapide"]
[Date "2024.12.07"]
[White "Pancevski, Filip"]
[Black "Laurusas, Tomas"]
[WhiteElo "2420"]
[BlackElo "2578"]
[Round "6.17"]
[Result "0-1"]
[TimeControl "900+10"]

1. e4 {[%emt 00:00:01] [%clk 00:15:18]} c5 {[%emt 00:00:03] [%clk 00:15:19]} 2.
Nf3 {[%emt 00:00:05] [%clk 00:15:21]} e6 {[%emt 00:00:02] [%clk 00:15:28]} 3. d3
{[%emt 00:00:01] [%clk 00:15:29]} Nc6 {[%emt 00:00:27] [%clk 00:15:11]} 4. g3
{[%emt 00:00:01] [%clk 00:15:38]} g6 {[%emt 00:00:01] [%clk 00:15:20]} 5. Bg2
{[%clk 00:15:47]} Bg7 {[%clk 00:15:29]} 6. O-O {[%emt 00:00:09] [%clk 00:15:48]}
Nge7 {[%emt 00:00:03] [%clk 00:15:37]} 7. Re1 {[%emt 00:00:12] [%clk 00:15:45]}
Qc7 {[%emt 00:01:26] [%clk 00:14:22]} 8. Nbd2 {[%emt 00:00:11] [%clk 00:15:44]}
O-O {[%emt 00:00:42] [%clk 00:13:49]} 9. h4 {[%emt 00:00:04] [%clk 00:15:50]} d6
{[%emt 00:00:30] [%clk 00:13:30]} 10. c3 {[%emt 00:00:15] [%clk 00:15:45]} b6
{[%emt 00:00:42] [%clk 00:12:57]} 11. Nf1 {[%emt 00:00:15] [%clk 00:15:40]} Ba6
{[%emt 00:00:07] [%clk 00:13:00]} 12. h5 {[%emt 00:00:24] [%clk 00:15:26]} Ne5
{[%emt 00:00:18] [%clk 00:12:52]} 13. h6 {[%emt 00:03:54] [%clk 00:11:42]} Bh8
{[%emt 00:00:03] [%clk 00:12:59]} 14. d4 {[%emt 00:00:45] [%clk 00:11:07]} Nd3
{[%emt 00:00:03] [%clk 00:13:06]} 15. Re3 {[%emt 00:00:05] [%clk 00:11:13]} Nxc1
{[%emt 00:00:05] [%clk 00:13:11]} 16. Rxc1 {[%emt 00:00:02] [%clk 00:11:21]}
Rac8 {[%emt 00:00:53] [%clk 00:12:27]} 17. Qa4 {[%emt 00:01:06] [%clk 00:10:26]}
Bb7 {[%emt 00:00:02] [%clk 00:12:35]} 18. Rd1 {[%emt 00:00:14] [%clk 00:10:21]}
cxd4 {[%emt 00:00:25] [%clk 00:12:21]} 19. Nxd4 {[%emt 00:00:06] [%clk
00:10:25]} a6 {[%emt 00:00:03] [%clk 00:12:28]} 20. Ree1 {[%emt 00:00:46] [%clk
00:09:48]} Rfd8 {[%emt 00:01:00] [%clk 00:11:38]} 21. Ne3 {[%emt 00:00:26] [%clk
00:09:32]} Qc5 {[%emt 00:00:02] [%clk 00:11:47]} 22. Qb3 {[%emt 00:00:54] [%clk
00:08:48]} Rb8 {[%emt 00:00:01] [%clk 00:11:55]} 23. Ng4 {[%emt 00:03:41] [%clk
00:05:16]} Bc8 {[%emt 00:02:15] [%clk 00:09:51]} 24. e5 {[%emt 00:01:35] [%clk
00:03:52]} dxe5 {[%emt 00:02:25] [%clk 00:07:36]} 25. Nf3 {[%emt 00:00:44] [%clk
00:03:18]} Bd7 {[%emt 00:00:38] [%clk 00:07:08]} 26. Nfxe5 {[%emt 00:02:29]
[%clk 00:00:59]} Be8 {[%emt 00:00:01] [%clk 00:07:16]} 27. Qc4 {[%emt 00:00:01]
[%clk 00:01:08]} Qxc4 {[%emt 00:04:44] [%clk 00:02:43]} 28. Nxc4 {[%emt
00:00:02] [%clk 00:01:16]} Rxd1 {[%emt 00:00:22] [%clk 00:02:30]} 29. Rxd1
{[%clk 00:01:26]} Nf5 {[%emt 00:00:01] [%clk 00:02:38]} 30. Bf3 {[%emt 00:00:58]
[%clk 00:00:38]} Kf8 {[%emt 00:00:12] [%clk 00:02:37]} 31. Nd2 {[%emt 00:00:20]
[%clk 00:00:28]} Rd8 {[%emt 00:00:19] [%clk 00:02:27]} 32. Ne4 {[%emt 00:00:02]
[%clk 00:00:37]} Rxd1+ {[%clk 00:02:35]} 33. Bxd1 {[%emt 00:00:01] [%clk
00:00:46]} Ke7 {[%emt 00:00:01] [%clk 00:02:44]} 34. Be2 {[%emt 00:00:23] [%clk
00:00:34]} Bc6 {[%emt 00:00:23] [%clk 00:02:30]} 35. Ng5 {[%emt 00:00:14] [%clk
00:00:30]} f6 {[%emt 00:00:35] [%clk 00:02:06]} 36. Nf3 {[%emt 00:00:28] [%clk
00:00:11]} a5 {[%emt 00:00:05] [%clk 00:02:12]} 37. Nd2 {[%emt 00:00:06] [%clk
00:00:15]} Nd6 {[%emt 00:00:13] [%clk 00:02:09]} 38. Nc4 {[%emt 00:00:08] [%clk
00:00:17]} Nxc4 {[%emt 00:00:51] [%clk 00:01:28]} 39. Bxc4 {[%clk 00:00:26]} b5
{[%emt 00:00:23] [%clk 00:01:16]} 40. Bd3 {[%emt 00:00:11] [%clk 00:00:25]} f5
{[%emt 00:00:01] [%clk 00:01:25]} 41. Ne3 {[%emt 00:00:02] [%clk 00:00:33]} Bf6
{[%emt 00:00:26] [%clk 00:01:08]} 42. f4 {[%emt 00:00:01] [%clk 00:00:42]} g5
{[%emt 00:00:31] [%clk 00:00:47]} 43. Kf2 {[%emt 00:00:03] [%clk 00:00:50]} gxf4
{[%emt 00:00:03] [%clk 00:00:54]} 44. gxf4 {[%emt 00:00:01] [%clk 00:00:59]} Kf7
{[%emt 00:00:35] [%clk 00:00:29]} 45. a4 {[%emt 00:01:04]} bxa4 {[%clk
00:00:23]} 46. Nc4 {[%emt 00:00:01] [%clk 00:00:30]} Bd5 {[%emt 00:00:16] [%clk
00:00:16]} 47. Nxa5 {[%clk 00:00:39]} a3 {[%emt 00:00:14] [%clk 00:00:13]} 48.
bxa3 {[%emt 00:00:02] [%clk 00:00:47]} Bxc3 {[%emt 00:00:01] [%clk 00:00:22]}
49. Nc4 {[%emt 00:00:07] [%clk 00:00:49]} Bc6 {[%emt 00:00:20] [%clk 00:00:12]}
50. Ke3 {[%emt 00:00:24] [%clk 00:00:35]} Kf6 {[%emt 00:00:06] [%clk 00:00:17]}
51. Nd2 {[%emt 00:00:11] [%clk 00:00:34]} Bb2 {[%emt 00:00:05] [%clk 00:00:22]}
52. Bc4 {[%emt 00:00:31] [%clk 00:00:13]} Bxa3 {[%emt 00:00:06] [%clk 00:00:26]}
53. Nb3 {[%clk 00:00:22]} Be4 {[%emt 00:00:07] [%clk 00:00:28]} 54. Kf2 {[%emt
00:00:04] [%clk 00:00:29]} Bf8 {[%emt 00:00:07] [%clk 00:00:31]} 55. Nd4 {[%emt
00:00:07] [%clk 00:00:31]} Bc5 {[%emt 00:00:08] [%clk 00:00:34]} 56. Ke3 {[%emt
00:00:03] [%clk 00:00:38]} e5 {[%emt 00:00:02] [%clk 00:00:41]} 0-1

[Site "Europe Echecs"]